bitfinex-derivatives/quotes_SOLF0:USTF0_20250428
["timestamp","ask_amount","ask_price","bid_price","bid_amount"]
[1745822985262,2.6483,150.87,150.77,23.76]
[1745822985666,6.6279,150.83,150.78,6.63]
[1745822985968,6.6279,150.83,150.77,23.76]
[1745822985969,23.76,150.84,150.74,2.7252]
[1745822986166,2.7207,150.83,150.75,23.76]
[1745822986370,18.26914205,150.82,150.75,23.76]
[1745822986568,20.79194205,150.82,150.72,23.76]
[1745822986868,2.6483,150.81,150.72,42.02914205]
[1745822987069,2.7207,150.83,150.73,5.4462]
[1745822987967,23.76,150.84,150.75,18.26914205]
[1745822988168,23.76,150.84,150.76,23.76]
[1745822988465,23.76,150.84,150.8,6.629]
[1745822988768,23.76,150.84,150.78,18.26914205]
[1745822989065,2.5532,150.87,150.83,6.6278]
[1745822989771,23.76,150.88,150.84,6.6273]
[1745822990069,23.76,150.88,150.8,23.76]
[1745822990468,23.76,150.88,150.84,6.627]
[1745822990872,23.76,150.88,150.83,6.6278]
[1745822991773,23.76,150.88,150.84,6.6271]
[1745822991975,23.76,150.88,150.8,23.76]
[1745822992475,23.76,150.88,150.84,6.627]
[1745822995073,23.76,150.88,150.85,6.6268]
[1745822995277,23.76,150.88,150.8,23.76]
[1745822996075,23.76,150.88,150.84,6.6271]
[1745822998576,23.76,150.88,150.8,23.76]
[1745822998577,23.76,150.88,150.85,6.6269]
[1745823000278,23.76,150.88,150.84,6.6273]
[1745823000579,23.76,150.88,150.8,23.76]
[1745823002274,23.32594205,150.91,150.81,18.26914205]
[1745823002479,47.08594205,150.91,150.81,18.26914205]
[1745823003981,53.71024205,150.91,150.86,6.6262]
[1745823004181,53.71024205,150.91,150.81,18.26914205]
[1745823004381,47.08594205,150.91,150.81,18.26914205]
[1745823004683,53.71024205,150.91,150.87,6.626]
[1745823004978,47.08594205,150.91,150.87,6.626]
[1745823005482,47.08594205,150.91,150.86,6.6263]
[1745823005983,47.08594205,150.91,150.85,6.6268]
[1745823006279,47.08594205,150.91,150.81,18.26914205]
[1745823007283,6.6248,150.9,150.85,6.6267]
[1745823009185,6.6248,150.9,150.86,6.6265]
[1745823009388,47.08594205,150.91,150.81,18.26914205]
[1745823009790,47.08594205,150.91,150.86,6.6264]
[1745823010085,53.71054205,150.91,150.86,6.6264]
[1745823011997,53.71054205,150.91,150.87,6.626]
[1745823013697,6.6249,150.9,150.86,6.6264]
[1745823013901,18.26914205,150.88,150.8,23.76]
[1745823014293,18.26914205,150.88,150.85,6.6268]
[1745823014698,18.26914205,150.88,150.8,23.76]
[1745823015398,6.6262,150.87,150.82,6.6281]
[1745823015697,6.6262,150.87,150.8,23.76]
[1745823015892,30.3662,150.87,150.8,23.76]
[1745823016397,23.74,150.87,150.8,23.76]
[1745823016598,2.7375,150.86,150.76,503.5398]
[1745823016995,6.6274,150.84,150.76,503.5398]
[1745823017398,6.6274,150.84,150.76,500.84]
[1745823017796,23.74,150.83,150.76,23.74]
[1745823017992,18.26914205,150.82,150.76,23.74]
[1745823018203,24.89744205,150.82,150.77,6.6301]
[1745823018599,18.26914205,150.82,150.76,23.74]
[1745823018800,23.66754205,150.85,150.76,23.74]
[1745823018998,23.76,150.84,150.76,23.74]
[1745823019301,30.3877,150.84,150.78,6.6298]
[1745823019599,23.76,150.84,150.78,6.6298]
[1745823020402,6.6281,150.83,150.78,6.6298]
[1745823020902,30.3875,150.84,150.79,6.6293]
[1745823022098,23.76,150.84,150.76,23.74]
[1745823023401,30.3876,150.84,150.79,6.6294]
[1745823023602,11.43210959,150.82,150.76,23.74]
[1745823024102,11.43210959,150.82,150.79,6.6294]
[1745823027604,11.43210959,150.82,150.78,6.6299]
[1745823029607,11.43210959,150.82,150.79,6.6295]
[1745823029907,11.43210959,150.94,150.81,11.43210959]
[1745823030103,11.43210959,150.94,150.8,35.19210959]
[1745823030104,5.0368,150.93,150.85,11.43210959]
[1745823030400,5.0368,150.93,150.87,11.43210959]
[1745823030806,5.0368,150.93,150.9,6.6244]
[1745823031010,5.0368,150.93,150.87,11.43210959]
[1745823031507,5.0368,150.93,150.89,6.6248]
[1745823031708,2.4945,150.93,150.87,11.43210959]
[1745823032607,2.4945,150.93,150.91,6.6239]
[1745823032909,2.4945,150.93,150.87,11.43210959]
[1745823033507,2.4945,150.93,150.86,23.76]
[1745823034509,2.4945,150.93,150.9,6.6246]
[1745823034706,2.4945,150.93,150.86,23.76]
[1745823034903,5.092,150.93,150.86,23.76]
[1745823035309,6.6242,150.92,150.86,30.3862]
[1745823035703,42.02055791,150.91,150.83,23.76]
[1745823036605,6.625,150.9,150.84,6.6273]
[1745823036806,6.625,150.9,150.83,23.76]
[1745823037102,42.02055791,150.91,150.83,23.76]
[1745823037510,6.6252,150.89,150.83,23.76]
[1745823037713,42.02055791,150.91,150.83,23.76]
[1745823037911,42.02055791,150.91,150.79,23.76]
[1745823038113,18.26055791,150.88,150.79,23.76]
[1745823038307,26.5068,150.87,150.79,23.76]
[1745823038506,26.5068,150.87,150.76,23.76]
[1745823038708,5.4252,150.86,150.76,23.76]
[1745823039113,12.052,150.86,150.81,6.6284]
[1745823039715,6.627,150.85,150.81,6.6284]
[1745823042018,6.6279,150.83,150.79,6.6294]
[1745823042616,24.0,150.83,150.79,6.6294]
[1745823042914,24.0,150.83,150.76,23.76]
[1745823043417,24.0,150.83,150.78,6.63]
[1745823044418,30.628,150.83,150.78,6.63]
[1745823047526,24.0,150.83,150.79,6.6295]
[1745823047727,24.0,150.83,150.76,23.76]
[1745823049132,30.6281,150.83,150.78,6.6297]
[1745823049329,30.6281,150.83,150.76,23.76]
[1745823049830,24.0,150.83,150.76,23.76]
[1745823050427,24.0,150.83,150.78,6.63]
[1745823050621,24.0,150.83,150.76,23.76]
[1745823051128,24.0,150.83,150.79,6.6295]
[1745823051529,30.6281,150.83,150.76,23.76]
[1745823052431,6.6285,150.82,150.76,23.76]
[1745823053635,6.6285,150.82,150.77,6.6303]
[1745823055038,6.6285,150.82,150.78,6.6299]
[1745823055738,30.6279,150.83,150.78,6.6299]
[1745823057439,6.6283,150.82,150.78,6.6299]
[1745823057739,24.0,150.83,150.79,6.6296]
[1745823058440,30.6281,150.83,150.79,6.6296]
[1745823059537,42.05940837,150.83,150.79,6.6296]
[1745823059841,11.43130837,150.81,150.71,501.16]
[1745823060035,11.43130837,150.79,150.71,24.02]
[1745823060341,11.43130837,150.77,150.68,35.45130837]
[1745823060840,6.6309,150.76,150.72,6.6326]
[1745823061140,24.02,150.78,150.7,11.43130837]
[1745823061340,24.02,150.78,150.73,6.6319]
[1745823061840,24.02,150.78,150.75,6.6311]
[1745823062741,24.02,150.78,150.74,6.6316]
[1745823063544,24.02,150.78,150.75,6.6312]
[1745823063845,24.02,150.78,150.69,18.29981079]
[1745823064343,30.6501,150.78,150.69,18.29981079]
[1745823064541,30.6501,150.78,150.72,6.6324]
[1745823064844,6.6305,150.77,150.72,6.6324]
[1745823065144,24.02,150.78,150.69,18.29981079]
[1745823065540,30.6503,150.78,150.73,6.6321]
[1745823065848,24.02,150.78,150.69,18.29981079]
[1745823067345,6.6312,150.76,150.72,6.6325]
[1745823068449,6.6306,150.77,150.72,6.6325]
[1745823069748,30.6501,150.78,150.73,6.632]
[1745823070046,30.6501,150.78,150.69,18.29981079]
[1745823070249,30.6501,150.78,150.73,6.6319]
[1745823070749,24.02,150.78,150.69,18.29981079]
[1745823071348,24.02,150.78,150.75,6.6311]
[1745823072050,24.02,150.78,150.76,6.6309]
[1745823073350,24.02,150.78,150.77,6.6304]
[1745823073852,24.02,150.78,150.76,6.6308]
[1745823077554,24.02,150.78,150.72,23.82]
[1745823078455,30.6502,150.78,150.72,23.82]
[1745823078654,42.31981079,150.78,150.69,23.82]
[1745823078858,6.6308,150.77,150.72,6.6325]
[1745823079457,6.6312,150.76,150.71,6.6329]
[1745823079758,42.31981079,150.78,150.71,6.6329]
[1745823080154,6.6316,150.75,150.71,6.6329]
[1745823080453,23.82,150.74,150.69,6.6338]
[1745823080653,23.82,150.74,150.66,23.82]
[1745823080960,33.2097,150.74,150.66,23.82]
[1745823081458,33.2097,150.74,150.66,35.26347426]
[1745823081758,26.5776,150.74,150.7,6.6333]
[1745823083362,26.5776,150.74,150.71,6.6331]
[1745823085054,26.5776,150.74,150.72,6.6323]
[1745823085262,23.82,150.74,150.68,11.44347426]
[1745823085465,23.82,150.77,150.7,11.44347426]
[1745823085763,23.82,150.77,150.75,6.6311]
[1745823086367,23.82,150.77,150.76,6.6309]
[1745823086759,5.1036,150.79,150.76,6.6309]
[1745823088066,5.1036,150.79,150.75,6.6312]
[1745823089467,16.54707426,150.79,150.7,35.26347426]
[1745823089969,16.54707426,150.79,150.7,23.82]
[1745823090564,5.1036,150.79,150.7,35.26347426]
[1745823090760,2.5305,150.79,150.72,11.44347426]
[1745823091165,2.5305,150.79,150.7,35.26347426]
[1745823091670,9.1601,150.79,150.74,6.6315]
[1745823092767,9.1601,150.79,150.75,6.6313]
[1745823092967,2.5305,150.79,150.7,35.26347426]
[1745823093572,2.5305,150.79,150.75,6.6311]
[1745823094074,2.5305,150.79,150.7,35.26347426]
[1745823094472,2.5305,150.79,150.72,11.44347426]
[1745823094771,2.5305,150.79,150.76,6.6306]
[1745823095071,2.5305,150.79,150.72,11.44347426]
[1745823095568,2.5305,150.79,150.75,6.6312]
[1745823095871,9.1603,150.79,150.7,35.26347426]
[1745823096073,11.8102,150.79,150.7,35.26347426]
[1745823096272,11.8102,150.79,150.74,6.6317]
[1745823096572,6.63,150.78,150.74,6.6317]
[1745823097373,11.8101,150.79,150.75,6.6313]
[1745823097868,2.5305,150.79,150.75,6.6313]
[1745823098369,2.5305,150.79,150.7,35.26347426]
[1745823098574,9.1603,150.79,150.7,35.26347426]
[1745823099174,9.1603,150.79,150.74,6.6313]
[1745823100272,18.07357426,150.78,150.73,6.6321]
[1745823100475,11.44347426,150.78,150.7,23.82]
[1745823100669,2.5305,150.79,150.7,23.82]
[1745823100670,18.07447426,150.76,150.71,6.6329]
[1745823100871,35.20347426,150.76,150.67,23.76]
[1745823101273,35.20347426,150.76,150.65,5.0701]
[1745823101274,11.44347426,150.72,150.65,5.0701]
[1745823101471,11.44347426,150.7,150.65,5.0701]
[1745823101975,35.20347426,150.72,150.67,6.6347]
[1745823102175,35.20347426,150.72,150.65,5.0701]
[1745823102371,23.76,150.72,150.65,5.0701]
[1745823102771,35.20347426,150.72,150.65,5.0701]
[1745823103375,41.83627426,150.72,150.67,6.6348]
[1745823104274,35.20347426,150.72,150.65,5.0701]
[1745823105179,35.20347426,150.72,150.68,6.6342]
[1745823105675,23.76,150.72,150.65,5.0701]
[1745823106579,23.76,150.72,150.71,6.6331]
[1745823106878,23.76,150.72,150.66,11.44347426]
[1745823107078,23.76,150.72,150.7,6.6333]
[1745823107280,11.44347426,150.74,150.66,11.44347426]
[1745823109281,11.44347426,150.74,150.7,6.6332]
[1745823111086,18.07527426,150.74,150.7,6.6332]
[1745823111278,11.44347426,150.72,150.65,5.0701]
[1745823111480,11.44347426,150.72,150.63,23.76]
[1745823111783,11.44347426,150.7,150.63,23.76]
[1745823111985,23.78,150.71,150.63,23.76]
[1745823112179,11.44347426,150.72,150.64,11.44347426]
[1745823112378,2.5562,150.73,150.7,6.6334]
[1745823112574,2.5562,150.73,150.64,11.44347426]
[1745823114184,2.5562,150.73,150.7,6.6335]
[1745823114685,2.5562,150.73,150.64,11.44347426]
[1745823114881,9.1885,150.73,150.68,6.634]
[1745823116984,18.07617426,150.72,150.67,6.6347]
[1745823119190,18.07617426,150.72,150.68,6.6344]
[1745823119687,18.07617426,150.72,150.67,6.6347]
[1745823119891,11.44347426,150.7,150.63,23.76]
[1745823120189,35.22347426,150.7,150.63,23.76]
[1745823120490,41.85727426,150.7,150.65,6.6353]
[1745823120687,35.22347426,150.7,150.63,23.76]
[1745823121191,35.22347426,150.7,150.66,6.6349]
[1745823122094,35.22347426,150.7,150.67,6.6348]
[1745823123485,26.3362,150.73,150.65,11.44347426]
[1745823123685,2.5562,150.73,150.65,11.44347426]
[1745823124183,2.5562,150.73,150.69,6.6338]
[1745823124794,2.5562,150.73,150.67,11.44347426]
[1745823125294,2.5562,150.73,150.7,6.6333]
[1745823125500,2.5562,150.73,150.65,11.44347426]
[1745823125898,9.1885,150.73,150.65,11.44347426]
[1745823126497,11.44347426,150.72,150.63,35.20347426]
[1745823126797,18.07617426,150.72,150.63,35.20347426]
[1745823127199,18.07617426,150.72,150.67,6.6345]
[1745823129498,11.44347426,150.7,150.67,6.6345]
[1745823132101,11.44347426,150.7,150.63,23.76]
[1745823132602,18.07727426,150.7,150.65,6.6353]
[1745823132904,41.85727426,150.7,150.65,6.6353]
[1745823133202,41.85727426,150.7,150.66,6.6352]
[1745823133602,11.44347426,150.68,150.63,23.76]
[1745823133996,11.44347426,150.68,150.64,6.6359]
[1745823134301,18.07827426,150.68,150.6,31.4529]
[1745823135001,18.07827426,150.68,150.63,6.6364]
[1745823135301,18.07827426,150.68,150.6,26.3678]
[1745823135501,11.44347426,150.68,150.6,26.3678]
[1745823135701,11.44347426,150.68,150.64,6.6361]
[1745823136802,11.44347426,150.68,150.65,6.6357]
[1745823137103,35.22347426,150.7,150.61,11.44347426]
[1745823137799,11.44347426,150.68,150.6,26.3678]
[1745823139206,35.22347426,150.7,150.61,11.44347426]
[1745823139508,35.22347426,150.7,150.66,6.6351]
[1745823140402,41.85717426,150.7,150.66,6.6351]
[1745823141104,35.22347426,150.7,150.61,11.44347426]
[1745823142007,35.22347426,150.7,150.67,6.6346]
[1745823143206,35.22347426,150.7,150.68,6.6343]
[1745823144306,35.22347426,150.7,150.69,6.634]
[1745823144508,35.22347426,150.7,150.61,11.44347426]
[1745823144906,35.22347426,150.7,150.66,6.6352]
[1745823145107,35.22347426,150.7,150.61,11.44347426]
[1745823145308,11.44347426,150.68,150.6,26.3678]
[1745823145509,11.44347426,150.66,150.62,6.6368]
[1745823145708,35.22347426,150.66,150.62,6.6368]
[1745823147508,35.22347426,150.66,150.61,6.6374]
[1745823149710,35.22347426,150.66,150.62,6.637]
[1745823150012,41.85887426,150.66,150.6,26.3678]
[1745823150311,11.44347426,150.62,150.53,23.78]
[1745823150513,23.78,150.65,150.57,11.44347426]
[1745823150710,23.78,150.65,150.57,35.22347426]
[1745823150910,23.78,150.65,150.59,6.6382]
[1745823151108,30.416,150.65,150.59,6.6382]
[1745823151405,30.416,150.65,150.6,6.6379]
[1745823152011,23.78,150.65,150.6,6.6379]
[1745823152309,23.78,150.65,150.57,35.22347426]
[1745823153314,23.78,150.65,150.61,6.6372]
[1745823153508,23.78,150.65,150.57,35.22347426]
[1745823153905,30.4158,150.65,150.57,35.22347426]
[1745823154510,30.4158,150.65,150.59,6.638]
[1745823154712,30.4158,150.65,150.57,35.22347426]
[1745823155711,18.07977426,150.64,150.59,6.6382]
[1745823156115,11.44347426,150.62,150.54,26.4069]
[1745823156614,18.08087426,150.62,150.57,6.6389]
[1745823157415,18.08087426,150.62,150.58,6.6388]
[1745823158519,11.44347426,150.62,150.57,6.6391]
[1745823159212,18.08067426,150.62,150.57,6.6391]
[1745823160218,18.08067426,150.62,150.58,6.6388]
[1745823161214,6.6375,150.61,150.56,6.6394]
[1745823161410,11.44347426,150.62,150.54,26.4069]
[1745823161616,20.62707426,150.64,150.55,11.44347426]
[1745823161917,11.44347426,150.64,150.55,11.44347426]
[1745823162624,18.07997426,150.64,150.59,6.6381]
[1745823163115,6.6369,150.63,150.58,6.6387]
[1745823163318,11.44347426,150.64,150.54,26.4069]
[1745823163521,14.01147426,150.64,150.54,26.4069]
[1745823163819,6.6374,150.62,150.57,6.6388]
[1745823164321,6.6374,150.62,150.58,6.6387]
[1745823164521,6.6367,150.63,150.58,6.6387]
[1745823164721,14.01147426,150.64,150.54,37.85037426]
[1745823165118,11.44347426,150.64,150.56,11.44347426]
[1745823165317,35.22347426,150.64,150.56,11.44347426]
[1745823167624,23.78,150.64,150.58,11.44347426]
[1745823167826,23.78,150.64,150.58,35.22347426]
[1745823168723,35.22347426,150.64,150.58,23.78]
[1745823169226,35.22347426,150.64,150.6,6.6377]
[1745823169424,35.22347426,150.64,150.58,23.78]
[1745823169625,35.22347426,150.64,150.55,23.78]
[1745823169822,41.85967426,150.64,150.59,6.638]
[1745823170023,44.48017426,150.64,150.59,6.638]
[1745823170527,37.84397426,150.64,150.59,6.638]
[1745823170729,37.84397426,150.64,150.6,6.6378]
[1745823173829,37.84397426,150.64,150.61,6.6375]
[1745823175229,37.84397426,150.64,150.62,6.637]
[1745823175832,37.84397426,150.64,150.61,6.6373]
[1745823179836,26.4005,150.64,150.62,6.637]
[1745823180134,13.94337426,150.66,150.58,11.44347426]
[1745823180331,26.2799,150.66,150.65,6.6357]
[1745823180535,23.78,150.66,150.65,6.6357]
[1745823180834,23.78,150.69,150.6,11.44347426]
[1745823181035,23.78,150.69,150.65,6.6356]
[1745823183235,23.78,150.69,150.66,6.6352]
[1745823186638,30.414,150.69,150.66,6.6352]
[1745823186936,30.414,150.69,150.6,11.44347426]
[1745823187136,11.44347426,150.68,150.6,11.44347426]
[1745823187435,11.44347426,150.68,150.64,6.6359]
[1745823188137,11.44347426,150.68,150.59,23.78]
[1745823188336,11.44347426,150.66,150.59,23.78]
[1745823188736,18.07897426,150.66,150.61,6.6374]
[1745823188939,18.07897426,150.66,150.59,23.78]
[1745823189138,11.44347426,150.64,150.56,23.78]
[1745823189738,18.07967426,150.64,150.59,6.638]
[1745823190435,6.6367,150.63,150.58,6.6386]
[1745823190635,5.1756,150.63,150.56,23.78]
[1745823191037,5.1756,150.63,150.58,6.6388]
[1745823192137,5.1756,150.63,150.59,6.6384]
[1745823193039,5.1756,150.63,150.58,6.6387]
[1745823193940,11.8123,150.63,150.58,6.6387]
[1745823194743,11.44347426,150.62,150.56,6.6394]
[1745823195041,11.44347426,150.6,150.53,26.3799]
[1745823195541,11.44347426,150.6,150.56,6.6394]
[1745823195937,11.44347426,150.6,150.53,26.3799]
[1745823196136,11.44347426,150.6,150.56,6.6393]
[1745823197043,11.44347426,150.6,150.57,6.6391]
[1745823198042,11.44347426,150.6,150.58,6.6387]
[1745823199037,11.44347426,150.6,150.53,37.82337426]
[1745823199442,11.44347426,150.6,150.59,6.6384]
[1745823202038,11.44347426,150.6,150.59,2.4775]
[1745823202234,11.44347426,150.6,150.47,23.78]
[1745823202536,11.44347426,150.57,150.48,11.44347426]
[1745823202739,35.22347426,150.57,150.48,11.44347426]
[1745823203835,35.22347426,150.57,150.53,6.6406]
[1745823204243,35.22347426,150.57,150.54,6.6405]
[1745823205347,35.22347426,150.57,150.53,6.6409]
[1745823205640,35.22347426,150.57,150.48,11.44347426]
[1745823206235,23.78,150.57,150.52,11.44347426]
[1745823206437,23.78,150.6,150.52,11.44347426]
[1745823206646,23.78,150.6,150.54,11.44347426]
[1745823207146,23.78,150.6,150.59,6.6384]
[1745823208349,23.78,150.6,150.52,5.2002]
[1745823208543,23.78,150.6,150.52,16.64367426]
[1745823208945,23.78,150.6,150.57,6.6391]
[1745823209247,23.78,150.6,150.52,16.64367426]
[1745823209448,23.78,150.6,150.57,6.6389]
[1745823209747,23.78,150.6,150.54,11.44347426]
[1745823210249,23.78,150.6,150.58,6.6385]
[1745823210549,23.78,150.6,150.54,11.44347426]
[1745823210849,23.78,150.6,150.59,6.6384]
[1745823211449,23.78,150.6,150.58,6.6386]
[1745823214053,23.78,150.6,150.57,6.6391]
[1745823217251,23.78,150.6,150.58,6.6387]
[1745823217451,23.78,150.6,150.54,11.44347426]
[1745823217957,23.78,150.6,150.58,6.6385]
[1745823218454,23.78,150.6,150.59,6.6384]
[1745823219963,11.44347426,150.63,150.56,23.78]
[1745823220162,26.501,150.64,150.56,35.22347426]
[1745823220965,23.78,150.64,150.56,35.22347426]
[1745823222858,23.78,150.64,150.58,11.44347426]
[1745823223264,37.89667426,150.67,150.58,11.44347426]
[1745823223563,37.89667426,150.67,150.62,6.6367]
[1745823224370,37.89667426,150.67,150.63,6.6365]
[1745823225471,37.89667426,150.67,150.64,6.6359]
[1745823226866,44.53157426,150.67,150.64,6.6359]
[1745823227572,37.89667426,150.67,150.64,6.6359]
[1745823228973,44.53157426,150.67,150.64,6.6359]
[1745823229573,23.78,150.67,150.6,11.44347426]
[1745823229875,23.78,150.67,150.6,35.22347426]
[1745823230876,35.22347426,150.67,150.6,23.78]
[1745823231075,23.78,150.67,150.6,35.22347426]
[1745823231268,23.78,150.67,150.65,6.6353]
[1745823231667,23.78,150.67,150.6,35.22347426]
[1745823231874,2.554,150.68,150.6,35.22347426]
[1745823232578,11.44347426,150.69,150.6,35.22347426]
[1745823233275,23.78,150.7,150.66,6.6352]
[1745823234382,30.4137,150.7,150.65,6.6356]
[1745823234579,23.78,150.7,150.62,11.44347426]
[1745823234879,23.78,150.7,150.66,6.6353]
[1745823236780,23.78,150.7,150.67,6.6348]
[1745823238889,23.78,150.7,150.62,11.44347426]
[1745823238890,11.44347426,150.69,150.6,35.22347426]
[1745823239282,11.44347426,150.67,150.6,23.78]
[1745823239583,11.44347426,150.67,150.64,6.6358]
[1745823240683,11.44347426,150.67,150.6,23.78]
[1745823241489,11.44347426,150.67,150.64,6.6359]
[1745823242685,11.44347426,150.67,150.6,23.78]
[1745823242990,11.44347426,150.69,150.6,35.22347426]
[1745823243384,11.44347426,150.69,150.66,6.635]
[1745823244190,23.78,150.7,150.62,11.44347426]
[1745823245292,30.4136,150.7,150.65,6.6355]
[1745823245691,30.4136,150.7,150.62,11.44347426]
[1745823246595,30.4136,150.7,150.65,6.6355]
[1745823246995,11.44347426,150.69,150.65,6.6355]
[1745823247495,18.07747426,150.69,150.65,6.6355]
[1745823247700,11.44347426,150.67,150.6,23.78]
[1745823248198,11.44347426,150.67,150.63,6.6365]
[1745823248395,11.44347426,150.65,150.57,23.78]
[1745823248797,11.44347426,150.63,150.6,6.6375]
[1745823250802,11.44347426,150.63,150.59,6.6382]
[1745823251299,11.44347426,150.61,150.58,6.6385]
[1745823252305,11.44347426,150.61,150.59,6.6382]
[1745823254007,11.44347426,150.61,150.58,6.6386]
[1745823254208,11.44347426,150.61,150.54,23.78]
[1745823254708,11.44347426,150.61,150.58,6.6387]
[1745823258419,23.78,150.62,150.59,6.6384]
[1745823260316,23.78,150.62,150.6,6.6379]
[1745823260619,13.94787426,150.65,150.56,11.44347426]
[1745823261013,11.44347426,150.63,150.54,35.22347426]
[1745823261218,11.44347426,150.61,150.54,23.78]
[1745823261618,11.44347426,150.61,150.58,6.6384]
[1745823262218,11.44347426,150.61,150.59,6.6383]
[1745823262920,23.78,150.62,150.59,6.6383]
[1745823264217,11.44347426,150.61,150.54,23.78]
[1745823264917,6.638,150.6,150.56,6.6394]
[1745823265723,18.08117426,150.61,150.57,6.6392]
[1745823266125,18.08117426,150.61,150.54,23.78]
[1745823266513,11.44347426,150.59,150.54,23.78]
[1745823267921,11.44347426,150.59,150.56,6.6393]
[1745823271021,11.44347426,150.59,150.57,6.639]
[1745823271929,20.75537426,150.61,150.57,6.639]
[1745823272225,14.11757426,150.61,150.54,23.78]
[1745823272428,23.78,150.62,150.54,35.22347426]
[1745823272824,23.78,150.62,150.55,2.6874]
[1745823273430,23.78,150.62,150.6,6.6379]
[1745823275333,23.78,150.62,150.61,6.6375]
[1745823276836,23.78,150.62,150.55,2.6874]
[1745823277639,23.78,150.62,150.6,6.6377]
[1745823280639,23.78,150.62,150.61,6.6375]
[1745823280840,23.78,150.62,150.55,2.6874]
[1745823281035,23.78,150.62,150.56,11.44347426]
[1745823281240,23.78,150.65,150.62,6.6368]
[1745823281445,23.78,150.65,150.58,35.22347426]
[1745823282040,23.78,150.65,150.58,23.78]
[1745823282341,23.78,150.65,150.62,6.6368]
[1745823283442,41.85917426,150.65,150.61,6.6373]
[1745823283641,11.44347426,150.63,150.58,23.78]
[1745823284044,11.44347426,150.63,150.6,6.6378]
[1745823284543,11.44347426,150.63,150.56,2.6627]
[1745823284735,6.6373,150.62,150.58,6.6385]
[1745823285441,18.08107426,150.61,150.57,6.6391]
[1745823285843,6.6382,150.6,150.56,6.6394]
[1745823286043,35.22347426,150.61,150.56,6.6394]
[1745823286644,41.86107426,150.61,150.57,6.6392]
[1745823287244,35.22347426,150.61,150.58,6.6386]
[1745823287445,23.78,150.61,150.55,26.4674]
[1745823287947,23.78,150.61,150.59,6.6383]
[1745823289253,23.78,150.61,150.57,6.6388]
[1745823289448,35.22347426,150.61,150.57,6.6388]
[1745823289949,35.22347426,150.61,150.55,26.4674]
[1745823291051,23.78,150.61,150.58,6.6388]
[1745823291249,23.78,150.61,150.55,26.4674]
[1745823291651,23.78,150.61,150.59,6.6381]
[1745823292554,23.78,150.61,150.6,6.6379]
[1745823292853,23.78,150.64,150.6,6.6379]
[1745823293446,30.4162,150.64,150.6,6.6379]
[1745823294855,6.6367,150.63,150.56,11.44347426]
[1745823295257,23.78,150.64,150.56,11.44347426]
[1745823295556,30.4164,150.64,150.56,11.44347426]
[1745823296355,11.44347426,150.63,150.55,26.4674]
[1745823296556,11.44347426,150.63,150.59,6.6381]
[1745823299157,18.08007426,150.63,150.59,6.6381]
[1745823299354,11.44347426,150.61,150.55,26.4674]
[1745823299659,6.6383,150.6,150.52,37.93967426]
[1745823299956,11.44347426,150.59,150.52,26.4962]
[1745823300157,18.08207426,150.59,150.52,26.4962]
[1745823300357,18.08207426,150.59,150.55,6.64]
[1745823306165,11.44347426,150.57,150.54,6.6404]
[1745823306960,18.08277426,150.57,150.53,6.6409]
[1745823307263,11.44347426,150.57,150.49,23.78]
[1745823307454,11.44347426,150.57,150.53,6.6408]
[1745823309465,23.78,150.56,150.51,6.6419]
[1745823309766,23.78,150.56,150.49,23.78]
[1745823309956,30.42,150.56,150.51,6.6416]
[1745823311168,23.78,150.56,150.49,23.78]
[1745823311865,23.78,150.56,150.51,6.6419]
[1745823312263,23.78,150.56,150.49,23.78]
[1745823312566,23.78,150.56,150.52,6.6414]